lending/lending_fUSD_20250130
["ID","MTS","AMOUNT","RATE_DAILY","PERIOD"]
[350985628,1738267838626,-503.70196589,0.00019178,2]
[350985631,1738267838639,-931.11,0.00019178,2]
[350985633,1738267838652,-1761.39,0.00019178,2]
[350985636,1738267838666,-1201.3,0.00019178,2]
[350985638,1738267838679,-500.0,0.00019178,2]
[350985641,1738267838692,-500.0,0.00019178,2]
[350985643,1738267838705,-511.31848921,0.00019178,2]
[350985646,1738267838719,-500.0,0.00019178,2]
[350985648,1738267838733,-500.0,0.00019178,2]
[350985650,1738267838748,-500.0,0.00019178,2]
[350985653,1738267838761,-994.05,0.00019178,2]
[350985655,1738267838775,-542.97016694,0.00019178,2]
[350985658,1738267838789,-500.0,0.00019178,2]
[350985660,1738267838803,-1083.3,0.00019178,2]
[350985663,1738267838817,-916.36,0.00019178,2]
[350985665,1738267838829,-170.24445947,0.00019178,2]
[350985667,1738267838842,-500.0,0.00019178,2]
[350985670,1738267838855,-1298.75,0.00019178,2]
[350985672,1738267838869,-500.0,0.00019178,2]
[350985675,1738267838881,-500.0,0.00019178,2]
[350985677,1738267838895,-500.0,0.00019178,2]
[350985680,1738267838909,-500.0,0.00019178,2]
[350985682,1738267838922,-500.0,0.00019178,2]
[350985684,1738267838935,-500.0,0.00019178,2]
[350985687,1738267838949,-500.0,0.00019178,2]
[350985689,1738267838962,-2936.68,0.00019178,2]
[350985692,1738267838975,-1019.39,0.00019178,2]
[350985694,1738267838988,-500.0,0.00019178,2]
[350985697,1738267839001,-504.66372015,0.00019178,2]
[350985699,1738267839014,-500.0,0.00019178,2]
[350985701,1738267839028,-500.0,0.00019178,2]
[350985704,1738267839041,-500.0,0.00019178,2]
[350985706,1738267839053,-500.0,0.00019178,2]
[350985709,1738267839066,-500.0,0.00019178,2]
[350985711,1738267839079,-500.0,0.00019178,2]
[350985714,1738267839099,-500.0,0.00019178,2]
[350985717,1738267839114,-500.0,0.00019178,2]
[350985720,1738267839129,-500.0,0.00019178,2]
[350985722,1738267839144,-500.0,0.00019178,2]
[350985725,1738267839158,-1106.26,0.00019178,2]
[350985727,1738267839172,-501.39567886,0.00019178,2]
[350985730,1738267839186,-1416.7,0.00019178,2]
[350985732,1738267839201,-1739.26,0.00019178,2]
[350985735,1738267839214,-502.02571548,0.00019178,2]
[350985738,1738267839229,-722.99,0.00019178,2]
[350985740,1738267839242,-528.02607427,0.00019178,2]
[350985742,1738267839256,-1250.82,0.00019178,2]
[350985745,1738267839270,-500.0,0.00019178,2]
[350985747,1738267839284,-500.0,0.00019178,2]
[350985748,1738267839298,-790.58,0.00019178,2]
[350985749,1738267839312,-500.0,0.00019178,2]
[350985750,1738267839326,-500.0,0.00019178,2]
[350985751,1738267839340,-500.0,0.00019178,2]
[350985752,1738267839353,-518.17451267,0.00019178,2]
[350985753,1738267839367,-500.0,0.00019178,2]
[350985756,1738267839380,-504.16521037,0.00019178,2]
[350985758,1738267839396,-2018.27,0.00019178,2]
[350985760,1738267839409,-500.0,0.00019178,2]
[350985763,1738267839422,-635.47156821,0.00019178,2]
[350985765,1738267839436,-944.3,0.00019178,2]
[350985769,1738267839449,-500.0,0.00019178,2]
[350985772,1738267839464,-500.0,0.00019178,2]
[350985775,1738267839477,-500.0,0.00019178,2]
[350985780,1738267839490,-500.0,0.00019178,2]
[350985783,1738267839503,-1174.97,0.00019178,2]
[350985787,1738267839516,-668.81,0.00019178,2]
[350985790,1738267839528,-719.14,0.00019178,2]
[350985793,1738267839541,-500.0,0.00019178,2]
[350985795,1738267839560,-1883.96,0.00019178,2]
[350985798,1738267839573,-500.0,0.00019178,2]
[350985800,1738267839586,-500.0,0.00019178,2]
[350985803,1738267839599,-500.0,0.00019178,2]
[350985806,1738267839611,-500.0,0.00019178,2]
[350985809,1738267839623,-151.36491654,0.00019178,2]
[350985813,1738267839636,-500.0,0.00019178,2]
[350985815,1738267839650,-522.15,0.00019178,2]
[350985818,1738267839664,-500.0,0.00019178,2]
[350985820,1738267839677,-500.0,0.00019178,2]
[350985823,1738267839691,-1192.28,0.00019178,2]
[350985825,1738267839703,-500.0,0.00019178,2]
[350985827,1738267839712,-603.83,0.00019178,2]
[350985829,1738267839722,-718.24,0.00019178,2]
[350985831,1738267839731,-500.0,0.00019178,2]
[350985833,1738267839743,-500.0,0.00019178,2]
[350985835,1738267839752,-500.0,0.00019178,2]
[350985877,1738267839762,-500.0,0.00019178,2]
[350985881,1738267840164,-1218.05,0.00019178,2]
[350985886,1738267840207,-500.0,0.00019178,2]
[350985889,1738267840226,-500.0,0.00019178,2]
[350985891,1738267840236,-500.0,0.00019178,2]
[350985893,1738267840245,-1717.85,0.00019178,2]
[350985895,1738267840254,-1116.72,0.00019178,2]
[350985897,1738267840263,-500.0,0.00019178,2]
[350985900,1738267840273,-1546.18,0.00019178,2]
[350985902,1738267840282,-500.0,0.00019178,2]
[350985904,1738267840292,-738.41,0.00019178,2]
[350985906,1738267840301,-500.0,0.00019178,2]
[350985908,1738267840310,-500.0,0.00019178,2]
[350985910,1738267840321,-1087.32,0.00019178,2]
[350985912,1738267840331,-550.87,0.00019178,2]
[350985914,1738267840340,-500.0,0.00019178,2]
[350985916,1738267840350,-500.0,0.00019178,2]
[350985918,1738267840359,-500.0,0.00019178,2]
[350985920,1738267840368,-500.0,0.00019178,2]
[350985922,1738267840378,-1258.35,0.00019178,2]
[350985924,1738267840387,-500.0,0.00019178,2]
[350985926,1738267840397,-1090.66,0.00019178,2]
[350985928,1738267840407,-523.71,0.00019178,2]
[350985930,1738267840416,-500.0,0.00019178,2]
[350985932,1738267840425,-500.0,0.00019178,2]
[350985934,1738267840434,-500.0,0.00019178,2]
[350985936,1738267840443,-1158.18,0.00019178,2]
[350985939,1738267840453,-500.0,0.00019178,2]
[350985941,1738267840465,-500.0,0.00019178,2]
[350985943,1738267840474,-500.0,0.00019178,2]
[350985945,1738267840484,-500.0,0.00019178,2]
[350985947,1738267840493,-500.0,0.00019178,2]
[350985949,1738267840502,-500.0,0.00019178,2]
[350985951,1738267840512,-500.0,0.00019178,2]
[350985953,1738267840521,-500.0,0.00019178,2]
[350985955,1738267840530,-594.97496295,0.00019178,2]
[350985957,1738267840541,-833.86,0.00019178,2]
[350985959,1738267840551,-977.44,0.00019178,2]
[350985961,1738267840560,-566.83,0.00019178,2]
[350985963,1738267840570,-1269.51,0.00019178,2]
[350985965,1738267840579,-1299.97,0.00019178,2]
[350985967,1738267840589,-505.30339742,0.00019178,2]
[350985969,1738267840598,-551.21,0.00019178,2]
[350985971,1738267840607,-500.0,0.00019178,2]
[350985973,1738267840616,-500.0,0.00019178,2]
[350985975,1738267840625,-500.0,0.00019178,2]
[350985977,1738267840636,-500.0,0.00019178,2]
[350985979,1738267840646,-3103.91,0.00019178,2]
[350985981,1738267840656,-1983.54,0.00019178,2]
[350985983,1738267840666,-500.0,0.00019178,2]
[350985985,1738267840676,-500.0,0.00019178,2]
[350985987,1738267840685,-500.0,0.00019178,2]
[350985989,1738267840694,-463.48938809,0.00019178,2]
[350985991,1738267840703,-500.0,0.00019178,2]
[350985993,1738267840712,-500.0,0.00019178,2]
[350985995,1738267840722,-564.74,0.00019178,2]
[350985997,1738267840731,-1203.76,0.00019178,2]
[350985999,1738267840742,-1585.17,0.00019178,2]
[350986001,1738267840754,-1054.61,0.00019178,2]
[350986003,1738267840764,-500.0,0.00019178,2]
[350986005,1738267840773,-500.0,0.00019178,2]
[350986007,1738267840783,-500.0,0.00019178,2]
[350986009,1738267840794,-500.0,0.00019178,2]
[350986011,1738267840803,-500.0,0.00019178,2]
[350986013,1738267840812,-510.86204337,0.00019178,2]
[350986015,1738267840822,-500.0,0.00019178,2]
[350986018,1738267840834,-500.0,0.00019178,2]
[350986020,1738267840844,-1501.75,0.00019178,2]
[350986022,1738267840854,-2212.2,0.00019178,2]
[350986023,1738267840865,-500.0,0.00019178,2]
[350986026,1738267840874,-500.0,0.00019178,2]
[350986028,1738267840883,-1718.72,0.00019178,2]
[350986030,1738267840893,-500.0,0.00019178,2]
[350986032,1738267840902,-529.21,0.00019178,2]
[350986034,1738267840911,-280.57267642,0.00019178,2]
[350986040,1738267840962,-219.42732358,0.00019178,2]
[350986042,1738267840972,-1286.81,0.00019178,2]
[350986044,1738267840981,-500.0,0.00019178,2]
[350986046,1738267840990,-500.0,0.00019178,2]
[350986048,1738267840999,-500.0,0.00019178,2]
[350986050,1738267841009,-500.0,0.00019178,2]
[350986052,1738267841018,-500.0,0.00019178,2]
[350986054,1738267841027,-884.04,0.00019178,2]
[350986056,1738267841036,-500.0,0.00019178,2]
[350986058,1738267841046,-3338.71,0.00019178,2]
[350986060,1738267841055,-500.0,0.00019178,2]
[350986062,1738267841064,-500.0,0.00019178,2]
[350986064,1738267841074,-500.0,0.00019178,2]
[350986066,1738267841084,-1954.65,0.00019178,2]
[350986068,1738267841096,-500.0,0.00019178,2]
[350986070,1738267841105,-2036.78,0.00019178,2]
[350986072,1738267841114,-500.0,0.00019178,2]
[350986074,1738267841125,-500.0,0.00019178,2]
[350986077,1738267841136,-500.0,0.00019178,2]
[350986079,1738267841147,-1558.23,0.00019178,2]
[350986081,1738267841158,-500.0,0.00019178,2]
[350986083,1738267841169,-500.0,0.00019178,2]
[350986085,1738267841179,-500.09741554,0.00019178,2]
[350986087,1738267841190,-500.0,0.00019178,2]
[350986088,1738267841199,-500.0,0.00019178,2]
[350986091,1738267841208,-1875.16,0.00019178,2]
[350986093,1738267841219,-674.03,0.00019178,2]
[350986095,1738267841228,-500.0,0.00019178,2]
[350986097,1738267841237,-500.0,0.00019178,2]
[350986099,1738267841246,-535.93,0.00019178,2]
[350986101,1738267841255,-1757.65,0.00019178,2]
[350986103,1738267841265,-852.95,0.00019178,2]
[350986105,1738267841274,-578.44809463,0.00019178,2]
[350986107,1738267841283,-1509.18,0.00019178,2]
[350986109,1738267841293,-1318.11,0.00019178,2]
[350986111,1738267841302,-500.0,0.00019178,2]
[350986113,1738267841312,-1321.13,0.00019178,2]
[350986115,1738267841321,-500.0,0.00019178,2]
[350986117,1738267841330,-500.0,0.00019178,2]
[350986119,1738267841340,-500.0,0.00019178,2]
[350986121,1738267841349,-500.0,0.00019178,2]
[350986123,1738267841358,-500.0,0.00019178,2]
[350986124,1738267841367,-500.0,0.00019178,2]
[350986125,1738267841377,-1611.81,0.00019178,2]
[350986126,1738267841386,-651.46,0.00019178,2]
[350986127,1738267841396,-1420.14,0.00019178,2]
[350986128,1738267841406,-500.0,0.00019178,2]
[350986129,1738267841415,-500.0,0.00019178,2]
[350986130,1738267841424,-500.0,0.00019178,2]
[350986131,1738267841436,-500.0,0.00019178,2]
[350986133,1738267841447,-500.0,0.00019178,2]
[350986135,1738267841457,-8517.42,0.00019178,2]
[350986137,1738267841467,-500.0,0.00019178,2]
[350986139,1738267841476,-500.0,0.00019178,2]
[350986141,1738267841485,-949.57,0.00019178,2]
[350986143,1738267841495,-2034.5,0.00019178,2]
[350986145,1738267841504,-500.0,0.00019178,2]
[350986147,1738267841513,-1077.64,0.00019178,2]
[350986149,1738267841523,-500.0,0.00019178,2]
[350986151,1738267841532,-1117.16,0.00019178,2]
[350986153,1738267841541,-416.55568833,0.00019178,2]
[350986155,1738267841550,-500.0,0.00019178,2]
[350986157,1738267841560,-658.06,0.00019178,2]
[350986159,1738267841569,-848.85,0.00019178,2]
[350986161,1738267841579,-500.0,0.00019178,2]
[350986163,1738267841589,-500.0,0.00019178,2]
[350986165,1738267841598,-500.0,0.00019178,2]
[350986167,1738267841608,-1525.79,0.00019178,2]
[350986169,1738267841617,-500.0,0.00019178,2]
[350986171,1738267841626,-506.96231032,0.00019178,2]
[350986173,1738267841636,-500.0,0.00019178,2]
[350986175,1738267841645,-2390.12,0.00019178,2]
[350986177,1738267841654,-500.0,0.00019178,2]
[350986179,1738267841668,-500.0,0.00019178,2]
[350986181,1738267841677,-706.41,0.00019178,2]
[350986183,1738267841686,-1112.78,0.00019178,2]
[350986185,1738267841695,-500.0,0.00019178,2]
[350986187,1738267841706,-630.28,0.00019178,2]
[350986189,1738267841716,-966.83,0.00019178,2]
[350986191,1738267841725,-500.0,0.00019178,2]
[350986193,1738267841735,-500.0,0.00019178,2]
[350986195,1738267841747,-912.99,0.00019178,2]
[350986197,1738267841756,-1365.08,0.00019178,2]
[350986199,1738267841766,-500.0,0.00019178,2]
[350986201,1738267841776,-1527.94,0.00019178,2]
[350986203,1738267841787,-600.18,0.00019178,2]
[350986205,1738267841796,-500.0,0.00019178,2]
[350986207,1738267841805,-2138.82,0.00019178,2]
[350986209,1738267841814,-500.0,0.00019178,2]
[350986211,1738267841825,-3179.53,0.00019178,2]
[350986213,1738267841834,-1585.82,0.00019178,2]
[350986215,1738267841844,-2234.21,0.00019178,2]
[350986217,1738267841854,-500.0,0.00019178,2]
[350986219,1738267841864,-3171.58,0.00019178,2]
[350986221,1738267841874,-500.0,0.00019178,2]
[350986223,1738267841885,-500.0,0.00019178,2]
[350986225,1738267841896,-500.0,0.00019178,2]
[350986228,1738267841906,-1003.68,0.00019178,2]
[350986229,1738267841915,-1988.12,0.00019178,2]
[350986231,1738267841925,-503.45235675,0.00019178,2]
[350986233,1738267841934,-500.0,0.00019178,2]
[350986236,1738267841944,-500.0,0.00019178,2]
[350986237,1738267841953,-500.0,0.00019178,2]
[350986240,1738267841964,-1825.53,0.00019178,2]
[350986242,1738267841975,-504.06327034,0.00019178,2]
[350986244,1738267841984,-1241.69,0.00019178,2]
[350986246,1738267841993,-1319.69,0.00019178,2]
[350986248,1738267842002,-500.0,0.00019178,2]
[350986250,1738267842012,-2288.32,0.00019178,2]
[350986252,1738267842022,-500.0,0.00019178,2]
[350986254,1738267842031,-2806.12,0.00019178,2]
[350986256,1738267842040,-500.0,0.00019178,2]
[350986258,1738267842049,-2521.69,0.00019178,2]
[350986260,1738267842058,-500.0,0.00019178,2]
[350986262,1738267842068,-500.0,0.00019178,2]
[350986264,1738267842077,-480.74201096,0.00019178,2]
[350986266,1738267842087,-500.0,0.00019178,2]
[350986268,1738267842096,-500.0,0.00019178,2]
[350986270,1738267842105,-500.0,0.00019178,2]
[350986272,1738267842115,-500.0,0.00019178,2]
[350986274,1738267842124,-2192.24,0.00019178,2]
[350986276,1738267842133,-1168.41,0.00019178,2]
[350986278,1738267842143,-1705.9,0.00019178,2]
[350986280,1738267842153,-501.71083606,0.00019178,2]
[350986282,1738267842163,-2651.96,0.00019178,2]
[350986284,1738267842172,-500.0,0.00019178,2]
[350986285,1738267842182,-500.0,0.00019178,2]
[350986286,1738267842191,-500.0,0.00019178,2]
[350986287,1738267842201,-848.52,0.00019178,2]
[350986288,1738267842211,-989.34,0.00019178,2]
[350986289,1738267842222,-500.0,0.00019178,2]
[350986290,1738267842231,-500.0,0.00019178,2]
[350986291,1738267842241,-500.0,0.00019178,2]
[350986292,1738267842251,-500.0,0.00019178,2]
[350986293,1738267842260,-1840.59,0.00019178,2]
[350986294,1738267842269,-1397.33,0.00019178,2]
[350986295,1738267842278,-2507.15,0.00019178,2]
[350986296,1738267842287,-500.0,0.00019178,2]
[350986297,1738267842297,-500.0,0.00019178,2]
[350986298,1738267842307,-2885.37,0.00019178,2]
[350986299,1738267842316,-568.3,0.00019178,2]
[350986300,1738267842326,-500.0,0.00019178,2]
[350986301,1738267842335,-500.0,0.00019178,2]
[350986302,1738267842345,-2352.31,0.00019178,2]
[350986303,1738267842355,-500.0,0.00019178,2]
[350986304,1738267842364,-500.0,0.00019178,2]
[350986305,1738267842374,-4139.65,0.00019178,2]
[350986306,1738267842386,-500.0,0.00019178,2]
[350986309,1738267842396,-1637.38,0.00019178,2]
[350986310,1738267842406,-500.0,0.00019178,2]
[350986312,1738267842416,-1257.37,0.00019178,2]
[350986314,1738267842425,-500.0,0.00019178,2]
[350986316,1738267842436,-1344.67,0.00019178,2]
[350986318,1738267842445,-1800.09,0.00019178,2]
[350986320,1738267842455,-500.0,0.00019178,2]
[350986322,1738267842465,-504.4901889,0.00019178,2]
[350986324,1738267842474,-500.0,0.00019178,2]
[350986326,1738267842483,-500.0,0.00019178,2]
[350986328,1738267842493,-500.0,0.00019178,2]
[350986330,1738267842503,-500.0,0.00019178,2]
[350986332,1738267842512,-1213.96,0.00019178,2]
[350986335,1738267842522,-940.51,0.00019178,2]
[350986337,1738267842531,-500.0,0.00019178,2]
[350986339,1738267842541,-500.0,0.00019178,2]
[350986342,1738267842550,-500.0,0.00019178,2]
[350986345,1738267842560,-536.40057577,0.00019178,2]
[350986348,1738267842569,-500.0,0.00019178,2]
[350986351,1738267842578,-515.4577049,0.00019178,2]
[350986354,1738267842588,-500.0,0.00019178,2]
[350986356,1738267842597,-418.16389399,0.00019178,2]
[350986360,1738267842615,-703.84610601,0.00019178,2]
[350986362,1738267842624,-905.63,0.00019178,2]
[350986364,1738267842634,-653.69,0.00019178,2]
[350986366,1738267842643,-500.0,0.00019178,2]
[350986368,1738267842653,-500.0,0.00019178,2]
[350986370,1738267842662,-78.93388399,0.00019178,2]
[350986372,1738267842675,-425.9213166,0.00019178,2]
[350986375,1738267842684,-1459.1,0.00019178,2]
[350986378,1738267842694,-502.32436842,0.00019178,2]
[350986381,1738267842703,-782.65431498,0.00019178,2]
[350986385,1738267842729,-7880.39568502,0.00019178,2]
[350986387,1738267842741,-976.1368124,0.00019178,2]
[350986493,1738267844598,-4470.3931876,0.00019178,2]
[350986494,1738267844609,-1744.44,0.00019178,2]
[350986495,1738267844619,-489.16126532,0.00019178,2]
[350986496,1738267844630,-1900.56873468,0.00019178,2]
[350986497,1738267844640,-1613.09,0.00019178,2]
[350986498,1738267844650,-500.0,0.00019178,2]
[350986499,1738267844661,-500.0,0.00019178,2]
[350986500,1738267844670,-500.0,0.00019178,2]
[350986501,1738267844680,-503.0813738,0.00019178,2]
[350986502,1738267844692,-589.31,0.00019178,2]
[350986503,1738267844701,-1727.15140633,0.00019178,2]
[350986504,1738267844714,-299.73859367,0.00019178,2]
[350986505,1738267844724,-3103.7,0.00019178,2]
[350986506,1738267844736,-805.73,0.00019178,2]
[350986507,1738267844749,-500.0,0.00019178,2]
[350986508,1738267844759,-500.0,0.00019178,2]
[350986509,1738267844769,-811.11,0.00019178,2]
[350986510,1738267844779,-500.0,0.00019178,2]
[350986511,1738267844789,-500.0,0.00019178,2]
[350986512,1738267844798,-500.0,0.00019178,2]
[350986513,1738267844808,-500.0,0.00019178,2]
[350986514,1738267844819,-500.0,0.00019178,2]
[350986515,1738267844829,-500.0,0.00019178,2]
[350986516,1738267844839,-5599.02,0.00019178,2]
[350986517,1738267844848,-1291.83,0.00019178,2]
[350986518,1738267844859,-3421.98,0.00019178,2]
[350986519,1738267844870,-469.07380147,0.00019178,2]
[350986520,1738267844880,-932.67,0.00019178,2]
[350986521,1738267844891,-3773.52,0.00019178,2]
[350986522,1738267844901,-755.54,0.00019178,2]
[350986523,1738267844913,-500.0,0.00019178,2]
[350986524,1738267844924,-955.85,0.00019178,2]
[350986525,1738267844934,-3444.92,0.00019178,2]
[350986526,1738267844945,-152.94581947,0.00019178,2]
[350986527,1738267844955,-532.50846026,0.00019178,2]
[350986528,1738267844967,-1525.08,0.00019178,2]
[350986529,1738267844977,-1451.12,0.00019178,2]
[350986530,1738267844986,-781.95,0.00019178,2]
[350986531,1738267844996,-500.0,0.00019178,2]
[350986532,1738267845006,-500.0,0.00019178,2]
[350986533,1738267845015,-2236.36,0.00019178,2]
[350986534,1738267845025,-976.82,0.00019178,2]
[350986535,1738267845035,-3069.68,0.00019178,2]
[350986536,1738267845044,-500.0,0.00019178,2]
[350986537,1738267845054,-1076.32,0.00019178,2]
[350986538,1738267845066,-500.0,0.00019178,2]
[350986539,1738267845075,-3827.98,0.00019178,2]
[350986540,1738267845085,-500.0,0.00019178,2]
[350986541,1738267845095,-1100.06,0.00019178,2]
[350986542,1738267845104,-500.0,0.00019178,2]
[350986543,1738267845114,-304.49332513,0.00019178,2]
[350986544,1738267845127,-316.2698799,0.00019178,2]
[350986545,1738267845139,-316.73,0.00019178,2]
[350986546,1738267845151,-985.65679497,0.00019178,2]
[350986547,1738267845161,-67.04890804,0.00019178,2]
[350986548,1738267845211,-432.95109196,0.00019178,2]
[350986549,1738267845221,-500.0,0.00019178,2]
[350986550,1738267845230,-3014.3,0.00019178,2]
[350986551,1738267845240,-1026.66,0.00019178,2]
[350986552,1738267845250,-500.0,0.00019178,2]
[350986553,1738267845260,-500.0,0.00019178,2]
[350986554,1738267845270,-628.39,0.00019178,2]
[350986555,1738267845280,-4782.58,0.00019178,2]
[350986556,1738267845291,-4782.58,0.00019178,2]
[350986557,1738267845300,-2267.93498259,0.00019178,2]
[350986558,1738267845312,-2514.64501741,0.00019178,2]
[350986559,1738267845322,-500.0,0.00019178,2]
[350986560,1738267845332,-500.0,0.00019178,2]
[350986561,1738267845341,-500.0,0.00019178,2]
[350986562,1738267845351,-500.0,0.00019178,2]
[350986563,1738267845361,-500.0,0.00019178,2]
[350986564,1738267845370,-3375.77327198,0.00019178,2]
[350986565,1738267845438,-933.41672802,0.00019178,2]
[350986567,1738267845448,-2005.61231132,0.00019178,2]
[350986568,1738267845461,-1797.16529092,0.00019178,2]
[350986569,1738267845476,-707.29239776,0.00019178,2]
[350986570,1738267845486,-500.0,0.00019178,2]
[350986571,1738267845496,-500.0,0.00019178,2]
[350986573,1738267845505,-500.0,0.00019178,2]
[350986575,1738267845516,-890.21,0.00019178,2]
[350986577,1738267845526,-5659.85,0.00019178,2]
[350986578,1738267845535,-1696.39808805,0.00019178,2]
[350986579,1738267845547,-1919.41191195,0.00019178,2]
[350986581,1738267845557,-500.0,0.00019178,2]
[350986583,1738267845567,-500.0,0.00019178,2]
[350986584,1738267845576,-586.67,0.00019178,2]
[350986586,1738267845586,-500.0,0.00019178,2]
[350986587,1738267845596,-754.79,0.00019178,2]
[350986588,1738267845606,-89.12805232,0.00019178,2]
[350986590,1738267845617,-4256.63194768,0.00019178,2]
[350986592,1738267845627,-3180.72,0.00019178,2]
[350986594,1738267845636,-500.0,0.00019178,2]
[350986595,1738267845646,-340.58273432,0.00019178,2]
[350986596,1738267845659,-159.41726568,0.00019178,2]
[350986597,1738267845669,-500.0,0.00019178,2]
[350986598,1738267845680,-282.16142266,0.00019178,2]
[350986599,1738267845699,-548.77021225,0.00019178,2]
[350986600,1738267845711,-413.66836509,0.00019178,2]
[350986601,1738267845723,-500.0,0.00019178,2]
[350986602,1738267845733,-2733.83915605,0.00019178,2]
[350986603,1738267845750,-502.90084395,0.00019178,2]
[350986604,1738267845760,-47.38809726,0.00019178,2]
[350986605,1738267845849,-336.01844849,0.00019178,2]
[350986606,1738267845863,-116.59345425,0.00019178,2]
[350986607,1738267845873,-214.71707237,0.00019178,2]
[350986608,1738267845887,-285.28292763,0.00019178,2]
[350986609,1738267845897,-55.9630372,0.00019178,2]
[350986610,1738267845914,-317.21379945,0.00019178,2]
[350986611,1738267845926,-126.82316335,0.00019178,2]
[350986612,1738267845935,-500.0,0.00019178,2]
[350986613,1738267845946,-500.0,0.00019178,2]
[350986614,1738267845955,-593.36,0.00019178,2]
[350986615,1738267845965,-2919.61,0.00019178,2]
[350986616,1738267845976,-500.0,0.00019178,2]
[350986617,1738267845986,-500.0,0.00019178,2]
[350986618,1738267845996,-1352.78,0.00019178,2]
[350986619,1738267846006,-1058.46,0.00019178,2]
[350986620,1738267846016,-1684.51,0.00019178,2]
[350986621,1738267846026,-500.0,0.00019178,2]
[350986622,1738267846036,-500.0,0.00019178,2]
[350986623,1738267846045,-2400.95683665,0.00019178,2]
[350986663,1738267846522,-982.80120554,0.00019178,2]
[350986666,1738267846534,-641.60195781,0.00019178,2]
[350986668,1738267846544,-1825.70725978,0.00019178,2]
[350986670,1738267846555,-1620.99274022,0.00019178,2]
[350986672,1738267846564,-500.0,0.00019178,2]
[350986674,1738267846574,-2000.33,0.00019178,2]
[350986676,1738267846583,-500.0,0.00019178,2]
[350986678,1738267846592,-235.19814638,0.00019178,2]
[350986680,1738267846604,-264.80185362,0.00019178,2]
[350986682,1738267846614,-500.0,0.00019178,2]
[350986683,1738267846623,-544.44505098,0.00019178,2]
[350986684,1738267846635,-2440.35494902,0.00019178,2]
[350986685,1738267846644,-500.0,0.00019178,2]
[350986686,1738267846654,-5505.11,0.00019178,2]
[350986687,1738267846663,-969.05,0.00019178,2]
[350986688,1738267846673,-987.65,0.00019178,2]
[350986689,1738267846683,-500.0,0.00019178,2]
[350986690,1738267846693,-5570.79,0.00019178,2]
[350986691,1738267846702,-500.0,0.00019178,2]
[350986692,1738267846713,-8756.31,0.00019178,2]
[350986693,1738267846727,-500.0,0.00019178,2]
[350986694,1738267846738,-500.0,0.00019178,2]
[350986695,1738267846749,-3948.99,0.00019178,2]
[350986696,1738267846758,-500.0,0.00019178,2]
[350986697,1738267846767,-500.0,0.00019178,2]
[350986698,1738267846778,-500.0,0.00019178,2]
[350986699,1738267846787,-500.0,0.00019178,2]
[350986700,1738267846797,-500.0,0.00019178,2]
[350986701,1738267846807,-2961.39,0.00019178,2]
[350986702,1738267846819,-500.0,0.00019178,2]
[350986703,1738267846830,-4011.89,0.00019178,2]
[350986704,1738267846840,-500.0,0.00019178,2]
[350986705,1738267846850,-1059.51,0.00019178,2]
[350986706,1738267846860,-500.0,0.00019178,2]
[350986707,1738267846870,-500.0,0.00019178,2]
[350986708,1738267846879,-998.94,0.00019178,2]
[350986709,1738267846889,-1284.2,0.00019178,2]